bitfinex-derivatives/quotes_ETHF0:USTF0_20250421
["timestamp","ask_amount","ask_price","bid_price","bid_amount"]
[1745277020052,9.24051645,1573.5,1573.4,7.98]
[1745277020258,11.01221645,1573.5,1573.3,7.28737]
[1745277020450,4.9795,1573.4,1573.3,7.28737]
[1745277024660,4.9795,1573.4,1573.3,9.09347]
[1745277025367,3.2078,1573.4,1573.3,9.09347]
[1745277026264,3.2078,1573.4,1573.3,14.09347]
[1745277026661,1.6134,1573.5,1573.3,12.8223]
[1745277026964,1.6134,1573.5,1573.4,3.0772]
[1745277027164,1.6134,1573.5,1573.4,9.2232]
[1745277027365,1.6134,1573.5,1573.4,14.2232]
[1745277027765,0.20663046,1573.5,1573.4,14.2232]
[1745277028071,6.35609645,1573.6,1573.5,1.27102]
[1745277028369,6.35609645,1573.6,1573.5,47.11542]
[1745277028571,6.35609645,1573.6,1573.5,43.90762]
[1745277029165,6.35609645,1573.6,1573.5,50.05362]
[1745277029759,6.35609645,1573.6,1573.5,55.05362]
[1745277032563,1.88322955,1573.8,1573.7,1.27086]
[1745277032763,1.88322955,1573.8,1573.7,5.46486]
[1745277032970,0.00952955,1573.8,1573.7,5.46486]
[1745277033163,0.00952955,1573.8,1573.7,7.16156]
[1745277034171,0.00952955,1573.8,1573.7,13.30756]
[1745277039171,168.9804,1574.0,1573.7,13.30756]
[1745277039172,165.7726,1574.0,1573.9,1.2707]
[1745277039471,165.7726,1574.0,1573.9,4.4785]
[1745277039472,161.99979,1574.0,1573.9,4.4785]
[1745277039673,161.99979,1574.0,1573.9,9.4785]
[1745277039877,160.11719,1574.0,1573.9,11.2036]
[1745277040072,160.11719,1574.0,1573.9,17.3496]
[1745277040274,160.11719,1574.0,1573.9,12.3496]
[1745277041682,160.11719,1574.0,1573.9,12.82718646]
[1745277046481,155.93757,1574.0,1573.9,17.82718646]
[1745277046681,150.56634,1574.0,1573.9,17.82718646]
[1745277046880,147.99774,1574.0,1573.9,17.82718646]
[1745277047084,145.64967,1574.0,1573.9,12.82718646]
[1745277047380,143.38743,1574.0,1573.9,12.82718646]
[1745277047681,140.85411,1574.0,1573.9,12.82718646]
[1745277047884,112.58587374,1574.0,1573.9,17.82718646]
[1745277048175,96.52580214,1574.0,1573.9,17.82718646]
[1745277048380,91.74414214,1574.0,1573.9,17.82718646]
[1745277048576,88.78875214,1574.0,1573.9,17.82718646]
[1745277048778,86.53009214,1574.0,1573.9,17.82718646]
[1745277049077,84.41953214,1574.0,1573.9,17.82718646]
[1745277049277,82.90275214,1574.0,1573.9,17.82718646]
[1745277049482,81.31000214,1574.0,1573.9,17.82718646]
[1745277049689,79.26724214,1574.0,1573.9,17.82718646]
[1745277049878,77.23081214,1574.0,1573.9,17.82718646]
[1745277050480,75.36914214,1574.0,1573.9,17.82718646]
[1745277050785,73.56288214,1574.0,1573.9,17.82718646]
[1745277051085,69.81365214,1574.0,1573.9,17.82718646]
[1745277052081,66.28787214,1574.0,1573.9,17.82718646]
[1745277052387,64.48022214,1574.0,1573.9,17.82718646]
[1745277052684,60.86553214,1574.0,1573.9,17.82718646]
[1745277052882,58.89814214,1574.0,1573.9,17.82718646]
[1745277053184,57.32016214,1574.0,1573.9,17.82718646]
[1745277053482,55.75286214,1574.0,1573.9,17.82718646]
[1745277053681,47.89653634,1574.0,1573.9,17.82718646]
[1745277054182,44.95162634,1574.0,1573.9,17.82718646]
[1745277054783,43.39824634,1574.0,1573.9,17.82718646]
[1745277054987,41.85552634,1574.0,1573.9,12.82718646]
[1745277055283,40.32995634,1574.0,1573.9,12.82718646]
[1745277055483,37.39790634,1574.0,1573.9,12.82718646]
[1745277055681,34.46941634,1574.0,1573.9,12.82718646]
[1745277056082,33.12493634,1574.0,1573.9,12.82718646]
[1745277056283,31.78473634,1574.0,1573.9,12.82718646]
[1745277056482,30.48256634,1574.0,1573.9,12.82718646]
[1745277056682,27.88729634,1574.0,1573.9,12.82718646]
[1745277058678,25.78349634,1574.0,1573.9,12.82718646]
[1745277061275,1e-08,1574.1,1574.0,1.27062]
[1745277061576,1e-08,1574.1,1574.0,7.24722]
[1745277062178,0.7722108,1574.4,1574.3,1.27038]
[1745277062478,3.2078,1574.9,1574.8,1.26997]
[1745277062686,0.8353,1575.0,1574.9,1.26982]
[1745277062879,0.84482955,1575.0,1574.9,1.26982]
[1745277063087,5.84482955,1575.0,1574.9,42.06982]
[1745277064986,5.84482955,1575.0,1574.9,40.8]
[1745277065189,7.11463955,1575.0,1574.9,40.8]
[1745277065788,5.84482955,1575.0,1574.9,40.8]
[1745277065991,7.60182955,1575.0,1574.9,42.06989]
[1745277066489,7.60182955,1575.0,1574.9,40.8]
[1745277067486,7.60182955,1575.0,1574.9,42.06989]
[1745277067487,2.60182955,1575.0,1574.9,42.06989]
[1745277068188,2.60182955,1575.0,1574.9,48.21589]
[1745277081704,1.76652955,1575.0,1574.9,48.21589]
[1745277081904,1.76652955,1575.0,1574.9,50.94369]
[1745277082308,1.76652955,1575.0,1574.9,50.95879]
[1745277086618,0.00952955,1575.0,1574.9,50.95879]
[1745277092623,0.00952955,1575.0,1574.9,55.95879]
[1745277093423,1.7248,1575.4,1575.3,1.26957]
[1745277093729,1.7248,1575.4,1575.3,5.40957]
[1745277094122,1.7248,1575.4,1575.3,47.93377]
[1745277101727,0.93002955,1575.5,1575.4,1.26949]
[1745277101932,2.76312955,1575.5,1575.4,4.47729]
[1745277102241,2.76312955,1575.5,1575.4,5.31969]
[1745277107834,2.76312955,1575.5,1575.4,7.06559]
[1745277109545,2.76312955,1575.5,1575.4,47.86559]
[1745277110643,2.76312955,1575.5,1575.4,44.65779]
[1745277110847,2.76312955,1575.5,1575.4,47.86559]
[1745277112148,2.76312955,1575.5,1575.4,44.65779]
[1745277112449,2.76312955,1575.5,1575.4,47.86559]
[1745277114643,2.76312955,1575.5,1575.4,44.65779]
[1745277114948,2.76312955,1575.5,1575.4,47.86559]
[1745277115451,2.76312955,1575.5,1575.4,44.65779]
[1745277115851,2.76312955,1575.5,1575.4,47.86559]
[1745277116750,2.76312955,1575.5,1575.4,44.65779]
[1745277117152,2.76312955,1575.5,1575.4,47.86559]
[1745277119551,2.76312955,1575.5,1575.4,44.65779]
[1745277120262,2.76312955,1575.5,1575.4,47.86559]
[1745277121357,1.84262955,1575.5,1575.4,47.86559]
[1745277121659,0.00952955,1575.5,1575.4,47.86559]
[1745277121963,0.00952955,1575.5,1575.4,47.88069]
[1745277122957,1.83292955,1575.5,1575.4,47.88069]
[1745277124369,1.83292955,1575.5,1575.4,45.29239]
[1745277124563,3.10233955,1575.5,1575.4,40.8151]
[1745277124864,8.10233955,1575.5,1575.4,0.0151]
[1745277125271,14.24833955,1575.5,1575.4,0.0151]
[1745277128573,9.24833955,1575.5,1575.4,0.0151]
[1745277131376,3.10233955,1575.5,1575.4,0.0151]
[1745277132577,8.10233955,1575.5,1575.4,0.0151]
[1745277133270,14.24833955,1575.5,1575.4,0.0151]
[1745277134176,8.10233955,1575.5,1575.4,0.0151]
[1745277135478,14.08633955,1575.5,1575.4,0.0151]
[1745277135675,1.26949,1575.4,1575.3,4.14]
[1745277135876,1.26965,1575.2,1575.1,4.102]
[1745277136083,4.47745,1575.2,1575.1,4.102]
[1745277136377,13.33635,1575.2,1575.1,4.102]
[1745277137283,18.33635,1575.2,1575.1,4.102]
[1745277139586,13.33635,1575.2,1575.1,4.102]
[1745277139984,19.32035,1575.2,1575.1,4.102]
[1745277140587,25.64376524,1575.2,1575.1,4.102]
[1745277141887,1.26997,1574.8,1574.7,100.80171955]
[1745277142189,1.26997,1574.8,1574.7,104.90371955]
[1745277144085,1.26997,1574.8,1574.7,103.63372955]
[1745277147889,1.6786,1574.9,1574.7,104.90376955]
[1745277148090,1.6786,1574.9,1574.8,1.779]
[1745277148389,2.94849,1574.9,1574.8,1.779]
[1745277149288,3.2078,1575.0,1574.8,1.779]
[1745277149491,10.46151,1575.2,1574.9,2.19029]
[1745277149690,6.19651,1575.2,1575.0,5.7731]
[1745277149886,6.19651,1575.2,1575.1,1.6701]
[1745277150085,6.19651,1575.2,1575.1,2.5873]
[1745277150492,1.719,1575.2,1575.1,3.85703]
[1745277150697,16.78475524,1575.4,1575.2,1.26964]
[1745277150889,1.26964,1575.3,1575.2,2.5453]
[1745277151085,2.98864,1575.3,1575.2,6.6483]
[1745277151485,9.1918,1575.4,1575.2,7.91795]
[1745277151691,1.26957,1575.3,1575.2,6.24785]
[1745277152089,12.29515,1575.4,1575.2,6.24785]
[1745277154701,6.31115,1575.4,1575.2,6.24785]
[1745277154995,1.26957,1575.3,1575.2,6.24785]
[1745277155896,1.26957,1575.3,1575.2,4.9782]
[1745277160500,3.2078,1575.4,1575.2,4.9782]
[1745277160693,1.26957,1575.3,1575.2,6.2478]
[1745277160894,1.26957,1575.3,1575.2,4.9782]
[1745277161999,2.98917,1575.3,1575.2,4.9782]
[1745277164606,2.98917,1575.3,1575.2,6.24785]
[1745277164902,1.26957,1575.3,1575.2,4.9782]
[1745277165098,1.26957,1575.3,1575.2,11.1242]
[1745277165297,1.26957,1575.3,1575.2,12.9029]
[1745277165899,3.08467,1575.3,1575.2,12.9029]
[1745277166099,3.08467,1575.3,1575.2,4.103]
[1745277166297,1.26981,1575.0,1574.9,0.8594]
[1745277166495,1.26981,1575.0,1574.9,4.9564]
[1745277166902,3.08491,1575.0,1574.9,4.9564]
[1745277168209,3.08491,1575.0,1574.9,4.097]
[1745277168400,3.94711,1575.0,1574.9,4.097]
[1745277169100,10.09311,1575.0,1574.9,4.097]
[1745277169404,15.09311,1575.0,1574.9,3.75600001]
[1745277171105,10.09311,1575.0,1574.9,3.75600001]
[1745277173604,1.26997,1574.8,1574.7,100.89752955]
[1745277173805,4.47777,1574.8,1574.7,100.89752955]
[1745277174303,13.31847,1574.8,1574.7,100.89752955]
[1745277177207,7.17247,1574.8,1574.7,100.89752955]
[1745277179514,7.17247,1574.8,1574.7,102.16756955]
[1745277179515,1.26997,1574.8,1574.7,102.16756955]
[1745277179713,1.26997,1574.8,1574.7,103.89836955]
[1745277182410,5.984,1574.9,1574.8,1.26997]
[1745277182612,5.984,1574.9,1574.8,4.74257]
[1745277184113,1.26986,1575.0,1574.8,4.74257]
[1745277184412,1.26986,1575.0,1574.9,1.733]
[1745277184805,1.26986,1575.0,1574.9,42.533]
[1745277185420,1.26986,1575.0,1574.9,43.80289]
[1745277186919,3.02535,1575.1,1574.9,43.80289]
[1745277187220,3.02535,1575.1,1575.0,5.8952]
[1745277188112,3.02535,1575.1,1575.0,7.16501]
[1745277189422,3.02535,1575.1,1575.0,8.05201]
[1745277191027,1.7556,1575.1,1575.0,8.05201]
[1745277191230,3.02533,1575.1,1575.0,8.05201]
[1745277193331,3.02533,1575.1,1575.0,6.7822]
[1745277194329,3.02533,1575.1,1575.0,8.05201]
[1745277199830,3.02533,1575.1,1575.0,6.7822]
[1745277201237,6.23313,1575.1,1575.0,6.7822]
[1745277201635,9.53121524,1575.3,1575.0,11.7822]
[1745277201833,1.26965,1575.2,1575.1,3.99187]
[1745277202033,1.26965,1575.2,1575.1,42.94837]
[1745277202235,10.80085524,1575.3,1575.2,1.26965]
[1745277202536,9.53121524,1575.3,1575.2,2.18765]
[1745277202937,6.32341524,1575.3,1575.2,2.18765]
[1745277203234,6.32341524,1575.3,1575.2,8.33365]
[1745277205941,2.95086,1575.4,1575.2,8.33365]
[1745277206238,1.6813,1575.4,1575.3,5.36657]
[1745277206442,3.21732955,1575.5,1575.3,4.097]
[1745277206636,4.48674955,1575.5,1575.4,0.9088]
[1745277206833,3.21732955,1575.5,1575.4,2.17829]
[1745277207244,3.21732955,1575.5,1575.4,8.32429]
[1745277207443,1e-08,1575.5,1575.4,8.32429]
[1745277208142,1e-08,1575.5,1575.4,2.17829]
[1745277208344,1e-08,1575.5,1575.4,7.17829]
[1745277209142,1e-08,1575.5,1575.4,13.32429]
[1745277211043,1e-08,1575.5,1575.4,16.53209]
[1745277211245,1e-08,1575.5,1575.4,10.38609]
[1745277213343,1e-08,1575.5,1575.4,12.05409]
[1745277213643,1e-08,1575.5,1575.4,7.05409]
[1745277215641,1e-08,1575.5,1575.4,3.84629]
[1745277215845,1e-08,1575.5,1575.4,7.05409]
[1745277219645,1e-08,1575.5,1575.4,7.90929]
[1745277220749,1e-08,1575.5,1575.4,1.26949]
[1745277220937,3.20780001,1575.5,1575.4,1.26949]
[1745277221443,4.07300001,1575.5,1575.4,1.26949]
[1745277221647,2.69780001,1575.5,1575.4,1.26949]
[1745277222746,5.90560001,1575.5,1575.3,4.097]
[1745277223044,1.6741,1575.4,1575.3,5.36657]
[1745277229856,2.94359,1575.4,1575.3,5.36657]
[1745277231857,2.94359,1575.4,1575.3,4.097]
[1745277233050,2.94359,1575.4,1575.3,5.36657]
[1745277236361,2.94359,1575.4,1575.3,4.097]
[1745277237562,7.94359,1575.4,1575.3,4.08747047]
[1745277237862,1.26973,1575.1,1575.0,1.2698]
[1745277238051,4.47753,1575.1,1575.0,5.3658]
[1745277238661,6.18083,1575.1,1575.0,5.3658]
[1745277240258,4.9111,1575.1,1575.0,5.3658]
[1745277240662,6.18083,1575.1,1575.0,4.096]
[1745277240863,6.18083,1575.1,1575.0,5.36581]
[1745277241562,4.9111,1575.1,1575.0,5.36581]
[1745277242162,4.9111,1575.1,1575.0,11.51181]
[1745277242766,6.18083,1575.1,1575.0,10.242]
[1745277242959,6.18083,1575.1,1575.0,11.51181]
[1745277244166,6.18083,1575.1,1575.0,5.36581]
[1745277244463,4.9111,1575.1,1575.0,5.36581]
[1745277244968,4.9111,1575.1,1575.0,7.20081]
[1745277247166,1.7033,1575.1,1575.0,7.20081]
[1745277247365,4.9111,1575.1,1575.0,7.20081]
[1745277247867,1.7033,1575.1,1575.0,7.20081]
[1745277248467,4.9111,1575.1,1575.0,7.20081]
[1745277248666,3.2078,1575.1,1575.0,7.20081]
[1745277249567,1.7435,1575.2,1575.1,1.26973]
[1745277249775,4.9513,1575.2,1575.1,2.10503]
[1745277249965,1.7435,1575.2,1575.1,2.10503]
[1745277250166,4.9513,1575.2,1575.1,2.10503]
[1745277250462,3.17444,1575.1,1574.7,98.07056955]
[1745277250659,4.47767,1575.0,1574.8,6.20121]
[1745277250860,7.07577,1575.0,1574.8,6.20121]
[1745277251070,1.7359,1574.9,1574.8,6.20121]
[1745277251366,1.7359,1574.9,1574.8,7.89121]
[1745277252168,7.8819,1574.9,1574.8,7.89121]
[1745277252870,7.8819,1574.9,1574.8,5.36591]
[1745277253167,1.7359,1574.9,1574.8,5.36591]
[1745277253478,1.7359,1574.9,1574.8,4.096]
[1745277253479,3.00579,1574.9,1574.8,4.096]
[1745277254158,9.15179,1574.9,1574.8,4.096]
[1745277255673,7.8819,1574.9,1574.8,5.36597]
[1745277255869,7.8819,1574.9,1574.8,7.13807]
[1745277257172,1.7359,1574.9,1574.8,7.13807]
[1745277259069,7.8819,1574.9,1574.8,7.13807]
[1745277259774,9.15179,1574.9,1574.8,7.13807]
[1745277260068,9.15179,1574.9,1574.8,5.8681]
[1745277260274,3.00579,1574.9,1574.8,5.8681]
[1745277261178,9.15179,1574.9,1574.8,5.8681]
[1745277262177,3.00579,1574.9,1574.8,5.8681]
[1745277265989,3.00579,1574.9,1574.8,7.13807]
[1745277267885,3.00579,1574.9,1574.8,5.8681]
[1745277268376,9.15179,1574.9,1574.8,5.8681]
[1745277268776,12.35959,1574.9,1574.8,5.8681]
[1745277269184,6.21359,1574.9,1574.8,5.8681]
[1745277270290,12.35959,1574.9,1574.8,5.8681]
[1745277271092,6.21359,1574.9,1574.8,5.8681]
[1745277271494,6.21359,1574.9,1574.8,7.13807]
[1745277272500,6.21359,1574.9,1574.8,5.8681]
[1745277273496,6.21359,1574.9,1574.8,7.13807]
[1745277274100,12.35959,1574.9,1574.8,7.13807]
[1745277274601,12.35959,1574.9,1574.8,5.8681]
[1745277275201,6.21359,1574.9,1574.8,7.13807]
[1745277275593,6.21359,1574.9,1574.8,5.8681]
[1745277276098,6.21359,1574.9,1574.8,7.13807]
[1745277276594,3.2078,1574.9,1574.8,7.13807]
[1745277276798,12.1437,1575.1,1574.9,1.26989]
[1745277277095,6.32341524,1575.2,1575.1,1.26973]
[1745277277301,6.32341524,1575.2,1575.1,5.36673]
[1745277277504,6.32341524,1575.2,1575.1,7.09663]
[1745277277698,6.32341524,1575.2,1575.1,12.09663]
[1745277278100,6.32341524,1575.2,1575.1,7.09663]
[1745277280602,7.59306524,1575.2,1575.1,5.8269]
[1745277280800,9.39086524,1575.2,1575.1,5.8269]
[1745277281403,8.12121524,1575.2,1575.1,7.09663]
[1745277281801,9.39086524,1575.2,1575.1,7.09663]
[1745277282002,8.12121524,1575.2,1575.1,7.09663]
[1745277282204,6.32341524,1575.2,1575.1,7.09663]
[1745277282400,3.2078,1575.3,1575.2,1.26965]
[1745277282702,3.2078,1575.3,1575.2,3.87915]
[1745277283001,3.0673,1575.4,1575.2,3.87915]
[1745277283194,3.0673,1575.4,1575.3,2.5779]
[1745277285105,3.0673,1575.4,1575.3,3.84747]
[1745277288109,9.2133,1575.4,1575.3,3.84747]
[1745277289410,3.0673,1575.4,1575.3,3.84747]
[1745277290810,1.7978,1575.4,1575.3,3.84747]
[1745277291406,3.06729,1575.4,1575.3,3.84747]
[1745277293111,9.21329,1575.4,1575.3,3.84747]
[1745277294111,9.21329,1575.4,1575.3,2.5779]
[1745277295009,9.21329,1575.4,1575.3,3.84747]
[1745277295310,3.06729,1575.4,1575.3,3.84747]
[1745277295809,3.06729,1575.4,1575.3,2.5779]
[1745277296110,9.21329,1575.4,1575.3,2.5779]
[1745277297010,1.26957,1575.3,1575.2,0.9048]
[1745277297211,3.89377,1575.3,1575.2,0.9048]
[1745277297413,1.26965,1575.2,1575.1,48.81166]
[1745277297612,2.99915,1575.2,1575.1,47.03306]
[1745277297826,2.99915,1575.2,1575.1,6.23306]
[1745277300805,3.83285,1575.2,1575.1,4.097]
[1745277301007,2.5632,1575.2,1574.9,2.16536]
[1745277301209,1.26981,1575.0,1574.9,2.16536]
[1745277301413,7.04629,1575.1,1575.0,4.095]
[1745277302114,13.19229,1575.1,1575.0,4.095]
[1745277316023,19.17629,1575.1,1575.0,4.095]
[1745277327429,18.32649,1575.1,1575.0,4.095]
[1745277327629,16.60759,1575.1,1575.0,5.7803]
[1745277327829,10.62359,1575.1,1575.0,5.7803]
[1745277328218,4.47759,1575.1,1575.0,5.7803]
[1745277332131,10.62359,1575.1,1575.0,5.7803]
[1745277333033,10.62359,1575.1,1575.0,7.05011]
[1745277333223,4.47759,1575.1,1575.0,7.05011]
[1745277334326,10.62359,1575.1,1575.0,7.05011]
[1745277336133,4.47759,1575.1,1575.0,7.05011]
[1745277336334,3.2078,1575.1,1575.0,7.05011]
[1745277337133,9.3538,1575.1,1575.0,7.05011]
[1745277338234,3.2078,1575.1,1575.0,7.05011]
[1745277339532,9.53121524,1575.3,1575.2,1.26965]
[1745277340127,9.53121524,1575.3,1575.2,3.04245]
[1745277341339,6.32341524,1575.3,1575.2,11.25025]
[1745277342047,6.32341524,1575.3,1575.2,8.04245]
[1745277344341,6.32341524,1575.3,1575.2,3.04245]
[1745277344641,8.14851524,1575.3,1575.2,3.04245]
[1745277345038,6.32341524,1575.3,1575.2,3.04245]
[1745277345639,7.14027001,1575.5,1575.3,1.26954]
[1745277345838,1.8251,1575.4,1575.3,3.84074]
[1745277346037,1.8251,1575.4,1575.3,7.93474]
[1745277346338,7.9711,1575.4,1575.3,7.93474]
[1745277347140,1.8251,1575.4,1575.3,7.93474]
[1745277348141,7.9711,1575.4,1575.3,7.93474]
[1745277349143,1.8251,1575.4,1575.3,7.93474]
[1745277351536,3.09459,1575.4,1575.3,7.93474]
[1745277352546,1.8251,1575.4,1575.3,7.93474]
[1745277355335,4.47727001,1575.5,1575.3,6.6652]
[1745277355640,4.90870001,1575.5,1575.4,3.95969]
[1745277356138,11.05470001,1575.5,1575.4,3.95969]
[1745277357241,4.90870001,1575.5,1575.4,3.95969]
[1745277360850,6.17811001,1575.5,1575.4,3.95969]
[1745277361149,6.17811001,1575.5,1575.4,2.12829]
[1745277361336,7.03391001,1575.5,1575.4,2.12829]
[1745277361539,5.76450001,1575.5,1575.4,2.12829]
[1745277361949,7.03391001,1575.5,1575.4,2.12829]
[1745277362249,5.76450001,1575.5,1575.4,2.12829]
[1745277363846,7.03391001,1575.5,1575.4,2.12829]
[1745277365453,5.76450001,1575.5,1575.4,2.12829]
[1745277366152,5.76450001,1575.5,1575.3,5.36353]
[1745277366460,2.96859,1575.4,1575.3,4.094]
[1745277367250,9.11459,1575.4,1575.3,4.094]
[1745277367956,9.11459,1575.4,1575.3,5.36357]
[1745277368151,2.96859,1575.4,1575.3,4.094]
[1745277371154,9.11459,1575.4,1575.3,4.094]
[1745277372048,9.11459,1575.4,1575.3,5.36357]
[1745277372353,2.96859,1575.4,1575.3,5.36357]
[1745277373146,12.32239,1575.4,1575.3,5.36357]
[1745277374356,6.17639,1575.4,1575.3,5.36357]
[1745277375253,12.32239,1575.4,1575.3,5.36357]
[1745277376156,6.17639,1575.4,1575.3,5.36357]
[1745277377549,6.17639,1575.4,1575.3,7.19517]
[1745277379161,2.96859,1575.4,1575.3,7.19517]
[1745277379362,6.17639,1575.4,1575.3,7.19517]
[1745277380062,2.96859,1575.4,1575.3,7.19517]
[1745277380566,6.17639,1575.4,1575.3,7.19517]
[1745277384666,1.26957,1575.3,1575.2,0.0149]
[1745277384857,10.73347,1575.3,1575.2,4.1079]
[1745277385165,10.73347,1575.3,1575.2,4.093]
[1745277385762,10.73347,1575.3,1575.2,4.1079]
[1745277385964,15.73347,1575.3,1575.2,4.1079]
[1745277386869,15.73347,1575.3,1575.2,0.0149]
[1745277388965,10.73347,1575.3,1575.2,0.0149]
[1745277389666,19.16469032,1575.3,1575.2,0.0149]
[1745277390763,18.32559032,1575.3,1575.2,0.0149]
[1745277391059,18.32559032,1575.3,1575.2,0.9011]
[1745277391455,18.32559032,1575.3,1575.2,2.17075]
[1745277391866,18.32559032,1575.3,1575.2,0.9011]
[1745277393073,17.46219032,1575.3,1575.2,0.9011]
[1745277393271,15.37694381,1575.3,1575.2,2.7389]
[1745277395267,9.39294381,1575.3,1575.2,2.7389]
[1745277397070,3.04697,1575.3,1575.2,2.7389]
[1745277402967,1.26957,1575.3,1575.2,4.00855]
[1745277403168,16.80729381,1575.4,1575.3,1.26957]
[1745277403374,9.55377381,1575.4,1575.3,7.14847]
[1745277404169,10.82326381,1575.4,1575.3,7.14847]
[1745277404674,10.82326381,1575.4,1575.3,5.8789]
[1745277405370,9.55377381,1575.4,1575.3,7.14847]
[1745277408877,3.2078,1575.4,1575.3,7.14847]
[1745277414379,1e-08,1575.5,1575.4,1.26949]
[1745277414580,1e-08,1575.5,1575.4,4.87069]
[1745277415282,1e-08,1575.5,1575.4,4.88559]
[1745277418380,1e-08,1575.5,1575.4,45.68559]
[1745277422980,1.79000001,1575.5,1575.4,45.68559]
[1745277428087,1e-08,1575.5,1575.4,45.68559]
[1745277432278,1e-08,1575.5,1575.4,41.706]
[1745277432485,4.92371001,1575.5,1575.4,0.0149]
[1745277432681,4.92371001,1575.5,1575.4,1.28439]
[1745277433685,4.92371001,1575.5,1575.4,0.0149]
[1745277435188,11.06971001,1575.5,1575.4,0.0149]
[1745277435887,11.06971001,1575.5,1575.4,1.28439]
[1745277436291,4.92371001,1575.5,1575.4,0.0149]
[1745277440282,4.92371001,1575.5,1575.4,1.28439]
[1745277440783,4.92371001,1575.5,1575.4,0.0149]
[1745277441293,8.13151001,1575.5,1575.4,0.0149]
[1745277444196,4.92371001,1575.5,1575.4,0.0149]
[1745277444394,8.13151001,1575.5,1575.4,0.0149]
[1745277451094,14.27751001,1575.5,1575.4,0.0149]
[1745277453996,19.27751001,1575.5,1575.4,0.0149]
[1745277454203,19.47748382,1575.5,1575.4,0.0149]
[1745277455302,25.62348382,1575.5,1575.4,0.0149]
[1745277456205,20.62348382,1575.5,1575.4,0.0149]
[1745277456800,26.60748382,1575.5,1575.4,0.0149]
[1745277457609,28.69273033,1575.5,1575.4,0.0149]
[1745277458608,25.48493033,1575.5,1575.4,0.0149]
[1745277458903,28.69273033,1575.5,1575.4,0.0149]
[1745277461102,20.26151001,1575.5,1575.4,0.0149]
[1745277465210,26.61207611,1575.5,1575.4,0.0149]
[1745277466107,20.46607611,1575.5,1575.4,0.0149]
[1745277466909,19.56517611,1575.5,1575.4,0.0149]
[1745277467104,18.65377611,1575.5,1575.4,0.0149]
[1745277467298,18.65377611,1575.5,1575.4,2.6199]
[1745277468406,12.66977611,1575.5,1575.4,2.6199]
[1745277470100,12.66977611,1575.5,1575.4,3.88939]
[1745277470300,12.66977611,1575.5,1575.4,2.6199]
[1745277471111,6.31921001,1575.5,1575.4,2.6199]
[1745277473212,12.46521001,1575.5,1575.4,2.6199]
[1745277474209,6.31921001,1575.5,1575.4,2.6199]
[1745277475405,6.31921001,1575.5,1575.4,3.88939]
[1745277475711,4.47721001,1575.5,1575.4,3.88939]
[1745277477113,3.20780001,1575.5,1575.4,3.88939]
[1745277477324,3.20780001,1575.5,1575.4,8.88939]
[1745277477907,3.20780001,1575.5,1575.4,49.68939]
[1745277478506,1e-08,1575.5,1575.4,52.89719]
[1745277480206,1e-08,1575.5,1575.4,59.04319]
[1745277480414,8.43122032,1575.8,1575.7,1.26925]
[1745277480612,8.43122032,1575.8,1575.7,5.35825]
[1745277481008,8.43122032,1575.8,1575.7,51.15825]
[1745277481208,8.43122032,1575.8,1575.7,52.87155]
[1745277481403,8.43122032,1575.8,1575.7,52.88645]
[1745277481404,6.19778644,1575.8,1575.7,52.88645]
[1745277481808,6.19778644,1575.8,1575.7,54.60515]
[1745277482710,0.00952955,1575.9,1575.8,1.26917]
[1745277482905,0.00952955,1575.9,1575.8,2.98787]
[1745277483510,0.00952955,1575.9,1575.8,1.7187]
[1745277485017,9.23571955,1575.9,1575.8,1.7187]
[1745277485316,9.23571955,1575.9,1575.7,49.63068]
[1745277485513,1.7776,1575.8,1575.7,49.63068]
[1745277486221,7.9236,1575.8,1575.7,49.63068]
[1745277487515,9.19277,1575.8,1575.7,5.8172]
[1745277487819,9.19277,1575.8,1575.7,7.08645]
[1745277488213,9.19277,1575.8,1575.7,4.1039]
[1745277488414,13.31117,1575.8,1575.7,4.1039]
[1745277488708,12.40057,1575.8,1575.7,5.37315]
[1745277488911,12.40057,1575.8,1575.7,8.01575]
[1745277489320,11.1314,1575.8,1575.7,8.01575]
[1745277490723,12.40057,1575.8,1575.7,8.01575]
[1745277491117,12.40057,1575.8,1575.7,6.26425]
[1745277491513,12.40057,1575.8,1575.7,4.1039]
[1745277494623,12.40057,1575.8,1575.7,0.0149]
[1745277494820,1.26925,1575.7,1575.6,0.00952955]
[1745277495022,4.75605,1575.7,1575.6,4.09752955]
[1745277496218,10.90205,1575.7,1575.6,4.09752955]
[1745277496621,16.88605,1575.7,1575.6,4.09752955]
[1745277497220,16.88605,1575.7,1575.6,0.00952955]
[1745277497625,21.88605,1575.7,1575.6,1e-08]
[1745277497933,16.88605,1575.7,1575.6,1e-08]
[1745277501727,10.90205,1575.7,1575.6,1e-08]
[1745277506732,9.15375,1575.7,1575.6,1.26933001]
[1745277507032,9.15375,1575.7,1575.6,3.98773001]
[1745277508435,6.146,1575.7,1575.6,3.98773001]
[1745277510736,6.146,1575.7,1575.6,44.78773001]
[1745277513334,4.47701,1575.8,1575.7,1.26925]
[1745277513534,4.47701,1575.8,1575.7,3.81265]
[1745277513841,3.2078,1575.8,1575.7,3.81265]
[1745277514140,9.3538,1575.8,1575.7,3.81265]
[1745277517056,12.35177,1575.8,1575.7,3.81265]
[1745277517754,12.35177,1575.8,1575.7,2.5434]
[1745277518345,12.35177,1575.8,1575.7,3.81265]
[1745277518551,12.35177,1575.8,1575.7,0.8654]
[1745277518751,13.19247,1575.8,1575.7,2.13465]
[1745277518952,11.0826,1575.8,1575.7,2.13465]
[1745277519151,4.9366,1575.8,1575.7,3.90165]
[1745277519547,3.2078,1575.8,1575.7,3.90165]
[1745277521154,0.00952955,1575.9,1575.7,3.90165]
[1745277521155,0.00952955,1575.9,1575.8,1.26917]
[1745277521357,0.00952955,1575.9,1575.8,11.22337]